Workbook

Sheet Sheet1
A1: 2025年生产部9月接收处置记录统计表 | R1: 自产废物
A2: 废物名称 | B2: 危废代码 | C2: 形态 | D2: 上月结存 | E2: 本月接收量 | F2: 处置量及工艺 | J2: 库存量 | K2: 1#库 | L2: 2#库 | M2: 干化 | N2: 罐区 | O2: 料坑 | R2: 废物名称 | S2: 上月结存 | T2: 本月产生量 | U2: 包数 | V2: 本月处理 | Y2: 库存 | Z2: 备注 | AA2: 存储位置
F3: 固废焚烧 | G3: 废液焚烧 | H3: 清洗大桶 | I3: 污泥干化 | K3: 1#库 | L3: 2#库 | M3: 干化 | N3: 罐区 | O3: 料坑 | V3: 焚烧处置 | W3: 液体炉 | X3: 拉运
A4: 精馏残渣 | B4: 271-001-02 | C4: 固态 | D4: 0 | E4: =2.8592 -> 2.8592 | J4: =D4+E4-F4-G4-H4-I4 -> 2.8592 | K4: 2.8592 | P4: =K4+L4+M4+N4+O4 -> 2.8592 | R4: 炉渣（回转窑） | S4: 263.485 | T4: =102.07-23.425 -> 78.645 | U4: =82-19 -> 63 | X4: 184.55 | Y4: =S4+T4-V4-X4-W4 -> 157.58
A5: 过滤介质 | B5: 271-003-02 | C5: 固态 | D5: 0 | E5: =0.012+2.055 -> 2.067 | F5: =0.012 -> 0.012 | J5: 2.055 | K5: 2.055 | P5: 2.055 | R5: 飞灰（回转窑） | S5: 13.618 | T5: 15.535 | U5: 39 | X5: 17.3 | Y5: 11.853
A6: 废盐 | B6: 271-005-02 | C6: 固态 | D6: 3 | E6: =5.64 -> 5.64 | J6: 8.64 | K6: 8.64 | P6: 8.64 | R6: 飞灰（废液炉） | S6: 2.8 | T6: 1.605 | U6: 5 | X6: 3.925 | Y6: 0.48
A7: 实验室废液 | B7: 900-002-03 | C7: 液态 | D7: 0 | E7: =0.82795 -> 0.82795 | G7: =0.82795 -> 0.82795 | J7: 0 | P7: 0 | R7: 废油渣/泥 | S7: 0 | Y7: 0 | Z7: 精馏切水后剩下的罐底泥
A8: 一般废药品 | B8: 900-002-03 | C8: 固态 | D8: 0 | E8: =6.34+6.72 -> 13.06 | F8: =6.34+6.72 -> 13.06 | J8: 0 | P8: 0 | R8: 含油污水 | S8: 0 | Y8: 0 | Z8: 蒸汽清洗过程 | AA8: 2#库
A9: 废药物、药品 杀虫剂、磷化铝等 | B9: 900-003-04 | C9: 固态 | D9: 0 | E9: =0.01 -> 0.01 | F9: =0.01 -> 0.01 | J9: 0 | P9: 0 | R9: 废商标 | S9: 0 | Y9: 0 | Z9: 除商标 | AA9: 2#库
A10: 污泥 | B10: 263-011-04 | C10: 半固态 | D10: 0 | E10: =18.74 -> 18.74 | F10: =18.74 -> 18.74 | J10: 0 | P10: 0 | R10: 废残液 | S10: 0 | Y10: 0 | Z10: 抽残液 | AA10: 2#库
A11: 废有机溶剂及废物 | B11: 900-402-06 | C11: 液态 | D11: 129.7955 | E11: =1.455+1.9465+4.736 -> 8.1375 | F11: =0.06+0.63 -> 0.69 | J11: 137.243 | L11: 137.243 | P11: 137.243 | R11: 废渣 | S11: 0 | Y11: 0 | Z11: 清洗过程 | AA11: 2#库
A12: 废有机溶剂 | B12: 900-404-06 | C12: 液态 | D12: 237.322 | E12: =7.13+0.7365 -> 7.8665 | F12: =10.4 -> 10.4 | G12: =37.32+33.81+17.18+20+4.08 -> 112.39 | J12: 122.3985 | L12: 122.3985 | P12: 122.3985 | R12: 漆渣 | S12: 0 | Y12: 0 | Z12: 清洗过程
A13: 废有机废液 | B13: 900-405-06 | C13: 液态 | D13: 4.5 | J13: 4.5 | L13: 4.5 | P13: 4.5 | R13: 污水厂污泥 | S13: 0 | Y13: 0 | Z13: 水处理后产生的污泥 | AA13: 2#库
A14: 废有机溶剂 | B14: 900-407-06 | C14: 液态 | D14: 140.398 | E14: =10.026 -> 10.026 | J14: 150.424 | L14: 150.424 | P14: 150.424 | R14: 废清洗剂 | S14: 0 | Y14: 0 | Z14: 清洗剂清洗过程
A15: 危废污泥 | B15: 900-409-06 | C15: 固态 | D15: 27.78 | E15: =30.52+22.32+24.7+21.28+14.92 -> 113.74 | F15: =27.78+30.52 -> 58.3 | J15: 83.22 | L15: 83.22 | P15: 83.22
A16: 油污水 | B16: 251-001-08 | C16: 液态 | D16: 572.7 | F16: =6+5 -> 11 | G16: =19.1+14.75+19.22+2+11 -> 66.07 | J16: 495.63 | N16: 495.63 | P16: 495.63
A17: 清舱污泥（水） | B17: 251-001-08 | C17: 半固态 | D17: 0 | E17: =10.9+4.78 -> 15.68 | F17: =10.9 -> 10.9 | J17: 4.78 | K17: 4.78 | P17: 4.78
A18: 清罐油渣 | B18: 251-002-08 | C18: 固态 | D18: 0 | E18: =0.3 -> 0.3 | F18: =0.3 -> 0.3 | J18: 0 | P18: 0
A19: 废滤芯 | B19: 251-012-08 | C19: 固态 | D19: 0 | E19: =2.28 -> 2.28 | F19: 2.28 | J19: 0 | P19: 0
A20: 废溶剂油 | B20: 291-001-08 | C20: 半固态 | D20: 51.22 | J20: 51.22 | K20: =51.22-20 -> 31.22 | O20: 20 | P20: 51.22
A21: 废油泥 | B21: 900-200-08 | C21: 半固态 | D21: 0 | E21: =0.64 -> 0.64 | F21: =0.64 -> 0.64 | J21: 0 | P21: 0
A22: 研磨泥 | B22: 900-200-08 | C22: 固态 | D22: 0 | E22: =15.5375+16.5285 -> 32.066 | F22: =15.5375 -> 15.5375 | J22: 16.5285 | L22: 16.5285 | P22: 16.5285
A23: HW08废油 | B23: 900-200-08 | C23: 液态 | D23: 58.243 | G23: =27.62+2.98 -> 30.6 | J23: 27.643 | K23: 11.883 | N23: 15.76 | P23: 27.643
A24: 废煤油 | B24: 900-201-08 | C24: 液态 | D24: 6.64 | E24: =0.6 -> 0.6 | J24: 7.24 | K24: 4.52 | N24: 2.72 | P24: 7.24
A25: 废锡膏盒 | B25: 900-205-08 | C25: 半固态 | D25: 0 | E25: =0.04 -> 0.04 | F25: =0.04 -> 0.04 | J25: 0 | P25: 0
A26: 废润滑脂 | B26: 900-209-08 | C26: 半固态 | D26: 0.081 | E26: =0.041 -> 0.041 | F26: =0.081+0.041 -> 0.122 | J26: 0 | P26: 0
A27: 水处理浮渣及污泥 | B27: 900-210-08 | C27: 半固态 | D27: 184.135 | E27: =1.5+25.84+1.93+2.936+0.119 -> 32.325 | F27: =5.071+18+11.264+20+21.9+10+16.75+8 -> 110.985 | J27: 105.475 | K27: 11.049 | L27: 24.506 | N27: 69.92 | P27: 105.475
A28: 废机油、含油废水 | B28: 900-210-08 | C28: 液态 | D28: 90.86 | E28: =3.179+4.9+2.3+2.82 -> 13.199 | F28: =19.9+26.319 -> 46.219 | J28: 57.84 | K28: 14 | L28: 38.94 | N28: 4.9 | P28: 57.84
A29: 废油泥 | B29: 900-210-08 | C29: 固态 | D29: 71.72 | E29: =11.106+9.84+0.06+3.3465 -> 24.3525 | F29: =11.106+9.84 -> 20.946 | J29: 75.1265 | L29: 75.1265 | P29: 75.1265
A30: 废矿物油 | B30: 900-214-08 | C30: 液态 | D30: 56.80745 | E30: =0.02+0.5016+5.74 -> 6.2616 | F30: =10.38 -> 10.38 | G30: =1.23+0.2+0.05935+7.72 -> 9.20935 | J30: 43.4797 | N30: 43.4797 | P30: 43.4797
A31: 废矿物油 | B31: 900-217-08 | C31: 液态 | D31: 51.63755 | E31: =8.26+23.84+5.92 -> 38.02 | G31: =0.26+0.685+0.74 -> 1.685 | J31: 87.97255 | N31: 87.97255 | P31: 87.97255
A32: 废液压油 | B32: 900-218-08 | C32: 液态 | D32: 45.095 | E32: =0.356+1.6+0.532 -> 2.488 | G32: =0.05+1.5+6.31+1.56 -> 9.42 | J32: 38.163 | N32: 38.163 | P32: 38.163
A33: 废冷冻机油 | B33: 900-219-08 | C33: 液态 | D33: 14.69 | G33: =0.74+0.07 -> 0.81 | J33: 13.88 | N33: 13.88 | P33: 13.88
A34: 废矿物油与含矿物油废物 | B34: 900-220-08 | C34: 液态 | D34: 2.809 | G34: =0.209 -> 0.209 | J34: 2.6 | N34: 2.6 | P34: 2.6
A35: 废矿物油 | B35: 900-249-08 | C35: 液态 | D35: 130.24382 | E35: =1.86+8.84+0.075+28.32+0.8+7.2+19.96+0.96+2.02 -> 70.035 | F35: =1.24+1.86+8.84 -> 11.94 | G35: =0.15+0.4+0.51+0.161+8.238+11.95 -> 21.409 | J35: 166.92982 | K35: 3.64 | L35: 54.7 | N35: 108.58982 | P35: 166.92982
A36: 废矿物油、废油桶 | B36: 900-249-08 | C36: 固态 | D36: 67.764 | E36: =7.84+11.22+4.04+1.62+3.23 -> 27.95 | F36: =9.58+7.9+1.94+8.46+5.72+12.8+4.02+4.324+5.16 -> 59.904 | H36: =4.18+3.66+3.58 -> 11.42 | J36: 24.39 | K36: 24.39 | P36: 24.39
A37: 废矿物油、油泥 | B37: 900-249-08 | C37: 半固态 | D37: 0 | E37: =9.7+0.55 -> 10.25 | F37: =9.7 -> 9.7 | J37: 0.55 | K37: 0.55 | P37: 0.55
A38: 废水、乳化液 | B38: 900-007-09 | C38: 液态 | D38: 27.072 | E38: =0.2285+2.8475+0.952+1.16+4.384 -> 9.572 | F38: =0.2285 -> 0.2285 | J38: 36.4155 | L38: 36.4155 | P38: 36.4155
A39: 沉淀渣 | B39: 900-007-09 | C39: 半固态 | D39: 0 | E39: =10.8 -> 10.8 | J39: 10.8 | L39: 10.8 | P39: 10.8
A40: 废乳化液 | B40: 900-006-09 | C40: 液态 | D40: 58.363 | E40: =6.3285+13+1.2+9.22+1.74+4.9565 -> 36.445 | G40: =0.055 -> 0.055 | J40: 94.753 | L40: 94.753 | P40: 94.753
A41: 砂轮沫 | B41: 900-006-09 | C41: 固态 | D41: 0 | E41: =3.4 -> 3.4 | J41: 3.4 | L41: 3.4 | P41: 3.4
A42: 废水汽提塔排重质烃 | B42: 252-009-11 | C42: 液态 | D42: 36.9 | E42: =16.74 -> 16.74 | J42: 53.64 | L42: 53.64 | P42: 53.64
A43: 煤焦油、釜残 | B43: 900-013-11 | C43: 固态 | D43: 6.85 | E43: =3.8045 -> 3.8045 | F43: =3.8045 -> 3.8045 | J43: 6.85 | K43: 4.56 | L43: 2.29 | P43: 6.85
A44: 煤焦油 | B44: 900-013-11 | C44: 液态 | D44: 49.4225 | E44: =11.519+7.65+2.435 -> 21.604 | F44: =4.573+8+7.82 -> 20.393 | J44: 50.6335 | K44: 28.2335 | L44: 22.4 | P44: 50.6335
A45: 釜残 | B45: 900-013-11 | C45: 半固态 | D45: 519.139 | E45: =27.92+0.762+27.42 -> 56.102 | F45: =4+8+8.34+4+12+7.92+8+8+4+6 -> 70.26 | J45: 504.981 | K45: 504.981 | P45: 504.981
A46: 煤焦油 | B46: 451-003-11 | C46: 液态 | D46: 559.6 | E46: =41.58+49.96+49.2+38.1+47.92+87.62 -> 314.38 | J46: 873.98 | L46: 99.1 | N46: 774.88 | P46: 873.98
A47: 漆渣 | B47: 900-250-12 | C47: 固态 | D47: 0 | E47: =16.14+14.481+14.1755 -> 44.7965 | F47: =16.14+14.481 -> 30.621 | J47: 14.1755 | K47: 14.1755 | P47: 14.1755
A48: 漆渣 | B48: 900-250-12 | C48: 半固态 | D48: 0 | E48: =0.408 -> 0.408 | J48: 0.408 | K48: 0.408 | P48: 0.408
A49: 废漆渣 | B49: 900-252-12 | C49: 固态 | D49: 168.75 | E49: =31.6475+1.2+13.78+12.03+14.42+8.2645+21.3555+40.369+29.831+11.17+15.16+22.5565+41.373 -> 263.157 | F49: =19.29+23.2+10+14.5275+37.94+2.1845+23.7355+23.4+9.52+12.349+14 -> 190.1465 | J49: 241.7605 | K49: =241.7605-150 -> 91.7605 | O49: =200-50 -> 150 | P49: 241.7605
A50: 硒鼓墨盒 | B50: 900-299-12 | C50: 固态 | D50: 0 | E50: =0.00201+0.047+0.18 -> 0.22901 | F50: =0.00201+0.047 -> 0.04901 | J50: 0.18 | K50: 0.18 | P50: 0.18
A51: 发泡废料，废胶水 | B51: 900-014-13 | C51: 半固态 | D51: 0 | E51: =0.4 -> 0.4 | J51: 0.4 | K51: 0.4 | P51: 0.4
A52: 发泡废料，废胶水 | B52: 900-014-13 | C52: 固态 | D52: 13.6 | E52: =5.56+6.91+3.24+2.7+3.64+10.64+4.84+3.66 -> 41.19 | F52: =8.04+2.46+5.56+12.85+3.64 -> 32.55 | J52: 22.24 | K52: 22.24 | P52: 22.24
A53: 废树脂 | B53: 900-015-13 | C53: 固态 | D53: 1.8 | F53: =1.8 -> 1.8 | J53: 0 | P53: 0
A54: 有机树脂废物 | B54: 900-016-13 | C54: 半固态 | D54: 4.296 | J54: 4.296 | K54: 4.296 | P54: 4.296
A55: PBL真空废液 | B55: 265-101-13 | C55: 液态 | D55: 17.52 | J55: 17.52 | K55: 17.52 | P55: 17.52
A56: PBL真空废液 | B56: 265-101-13 | C56: 固态 | D56: 1.42 | F56: =1.42 -> 1.42 | J56: 0 | P56: 0
A57: 废显影液 | B57: 900-019-16 | C57: 液态 | D57: 0 | E57: =1 -> 1 | F57: =1 -> 1 | J57: 0 | P57: 0
A58: 助镀再生废渣 | B58: 336-051-17 | C58: 固态 | D58: 0 | E58: =12.06 -> 12.06 | F58: =12.06 -> 12.06 | J58: 0 | P58: 0
A59: 镀铜溶液 | B59: 336-062-17 | C59: 液态 | D59: 0 | E59: =10.08 -> 10.08 | F59: =10.08 -> 10.08 | J59: 0 | P59: 0
A60: 废滤芯、污泥 | B60: 336-055-17 | C60: 固态 | D60: 0 | E60: =4.875 -> 4.875 | J60: 4.875 | L60: 4.875 | P60: 4.875
A61: 磷化污泥 | B61: 336-064-17 | C61: 固态 | D61: 4.8 | E61: =3.361+12.14+1.9715 -> 17.4725 | F61: =4.8+3.361 -> 8.161 | J61: 14.1115 | L61: 14.1115 | P61: 14.1115
A62: 金属表面处理污泥 | B62: 336-064-17 | C62: 液态 | D62: 4.828 | G62: =2.348 -> 2.348 | J62: 2.48 | L62: 2.48 | P62: 2.48
A63: 废锡渣 | B63: 336-059-17 | C63: 固态 | D63: 0 | E63: =0.095 -> 0.095 | F63: =0.095 -> 0.095 | J63: 0 | P63: 0
A64: 废碱液 | B64: 251-015-35 | C64: 液态 | D64: 13.86 | G64: =1.86+12 -> 13.86 | J64: 0 | P64: 0
A65: 含酚废水 | B65: 261-070-39 | C65: 液态 | D65: 206.8 | E65: =33.3 -> 33.3 | J65: 240.1 | N65: 240.1 | P65: 240.1
A66: 污泥 | B66: 261-084-45 | C66: 半固态 | D66: 0 | E66: =0.26 -> 0.26 | J66: 0.26 | L66: 0.26 | P66: 0.26
A67: 含油废物 | B67: 900-041-49 | C67: 固态 | D67: 152.8475 | E67: =29.534+15.8195+7.7+22.55+6.0685+21.9281+15.5642+0.05+0.5067+40.59+26.83+12.4+12.5747+9.8873+9.9385+41.488+28.0095+3.27+0.1 -> 304.809 | F67: =19.038+30.808+5.345+24.2665+26.505+19.3057+6.0496+24.3367+50.21+10.842+0.1+1 -> 217.8065 | J67: 239.85 | K67: =217.9202+0.9125-180 -> 38.8327 | L67: 21.0173 | O67: 180 | P67: 239.85
A68: 废酸碱袋、危险废物 | B68: 900-042-49 | C68: 固态 | D68: 0.281 | E68: =62.9225+58.7195+141.609+0.253 -> 263.504 | F68: =0.281+22.901+9.4305 -> 32.6125 | J68: =D68+E68-F68-G68-H68-I68 -> 231.1725 | K68: 0.253 | L68: 230.9195 | P68: =K68+L68+M68+N68+O68 -> 231.1725
A69: 废活性炭 | B69: 900-039-49 | C69: 固态 | D69: 20.814 | E69: =5.28+0.5+5.05219+0.4+8.977+0.10015+1.07+1.2+1.024+1.924 -> 25.52734 | F69: =20.368+1.446+5.28+0.65219+4.9+0.10015-1 -> 31.74634 | J69: 14.595 | O69: 14.595 | P69: 14.595
A70: 废水污泥 | B70: 900-046-49 | C70: 固态 | D70: 0 | E70: =4.51+3.017 -> 7.527 | F70: =4.51 -> 4.51 | J70: 3.017 | L70: 3.017 | P70: 3.017
A71: 过期化学药品 | B71: 900-047-49 | C71: 固态 | D71: 0.6195 | E71: =0.093+0.025+0.507+0.14+1.1 -> 1.865 | F71: =0.6195+0.093+0.025+0.507 -> 1.2445 | J71: 1.24 | L71: 1.24 | P71: 1.24
A72: 乙腈、异丙酮、废液 | B72: 900-047-49 | C72: 液态 | D72: 48.843 | E72: =5.9286+0.1505+0.236+3+4.3518+8.05784+0.0767+5.24415+0.165+6.17673+3.848+7.5557+0.058+0.35+5.463+0.126 -> 50.78802 | F72: =0.8+0.94+3.236+0.14+0.55288 -> 5.66888 | G72: =2.8055+0.2395+8.394+14.5419+19.88864+10.893 -> 56.76254 | J72: 37.1996 | L72: 37.1996 | P72: 37.1996
A73: 危险化学品 | B73: 900-999-49 | C73: 固态 | D73: 0 | E73: =0.03 -> 0.03 | J73: 0.03 | L73: 0.03 | P73: 0.03
A74: 过期面膜原料、残液 | B74: 900-999-49 | C74: 液态 | D74: 16.48 | J74: 16.48 | L74: 16.48 | P74: 16.48
A75: 小计： | D75: 3882.34682 | E75: =SUM(E4:E74) -> 2015.72312 | F75: =SUM(F4:F74) -> 1088.36273 | G75: =SUM(G4:G74) -> 325.65584 | H75: =SUM(H4:H74) -> 11.42 | I75: =SUM(I4:I74) -> 0 | J75: 4472.63137 | K75: =SUM(K4:K74) -> 847.4264 | L75: 1362.0149 | M75: 0 | N75: 1898.59507 | O75: 364.595 | P75: 4472.63137
A76: 合计： | F76: =F75+G75+H75 -> 1425.43857
